[Event "Titled Tuesday Blitz May 9 Early 2023"]
[White "Smith, Shreyas"]
[Black "Goffredo_Fofi"]
[WhiteFideId "7400713"]
[WhiteElo "2151"]
[BlackElo "2550"]
[Result "1-0"]
[Round "01"]
[TimeControl "180+2"]
[Date "2023.05.09"]
[WhiteClock "0:00:55"]
[BlackClock "0:00:10"]

1. e4 {[%clk 0:02:58]}  g6 {[%clk 0:03:00]} 2. d4 {[%clk 0:02:57]}  Bg7 {[%clk 0:03:01]} 3. Nc3 {[%clk 0:02:57]}  d6 {[%clk 0:02:58]} 4. Be3 {[%clk 0:02:54]}  a6 {[%clk 0:02:58]} 5. h4 {[%clk 0:02:52]}  h5 {[%clk 0:02:56]} 6. Qd2 {[%clk 0:02:53]}  b5 {[%clk 0:02:55]} 7. a3 {[%clk 0:02:51]}  Bb7 {[%clk 0:02:54]} 8. O-O-O {[%clk 0:02:51]}  Nd7 {[%clk 0:02:53]} 9. f3 {[%clk 0:02:51]}  Rc8 {[%clk 0:02:53]} 10. d5 {[%clk 0:02:46]}  c5 {[%clk 0:02:38]} 11. dxc6 {[%clk 0:02:44]}  Rxc6 {[%clk 0:02:38]} 12. Bd4 {[%clk 0:02:37]}  Ngf6 {[%clk 0:02:22]} 13. Nh3 {[%clk 0:02:36]}  Nb6 {[%clk 0:01:51]} 14. Ng5 {[%clk 0:02:31]}  Nc4 {[%clk 0:01:48]} 15. Bxc4 {[%clk 0:02:28]}  Rxc4 {[%clk 0:01:49]} 16. Nd5 {[%clk 0:02:25]}  Bxd5 {[%clk 0:01:40]} 17. exd5 {[%clk 0:02:25]}  O-O {[%clk 0:01:40]} 18. g4 {[%clk 0:02:24]}  Rxd4 {[%clk 0:01:11]} 19. Qxd4 {[%clk 0:02:23]}  Nxg4 {[%clk 0:01:12]} 20. Qa7 {[%clk 0:01:55]}  Ne5 {[%clk 0:01:06]} 21. b3 {[%clk 0:01:44]}  Qc8 {[%clk 0:00:40]} 22. Qe3 {[%clk 0:01:24]}  Qc7 {[%clk 0:00:37]} 23. Kb1 {[%clk 0:01:23]}  Rc8 {[%clk 0:00:36]} 24. Rd2 {[%clk 0:01:24]}  Qa5 {[%clk 0:00:36]} 25. Ka2 {[%clk 0:01:10]}  Rc3 {[%clk 0:00:33]} 26. Qf4 {[%clk 0:01:03]}  f5 {[%clk 0:00:18]} 27. Qb4 {[%clk 0:01:01]}  Qc7 {[%clk 0:00:18]} 28. Ne6 {[%clk 0:01:00]}  Rxc2+ {[%clk 0:00:18]} 29. Kb1 {[%clk 0:00:56]}  Rxd2 {[%clk 0:00:12]} 30. Nxc7 {[%clk 0:00:55]}  Nd3 {[%clk 0:00:10]} 31. Qxd2 {[%clk 0:00:55]} 1-0


[Site "https://www.chess.com"]

[Event "Titled Tuesday Blitz May 9 Early 2023"]
[White "Thorhallsson, Simon"]
[Black "Yonal, Timur"]
[WhiteFideId "2310090"]
[BlackFideId "44115725"]
[WhiteElo "2108"]
[BlackElo "1966"]
[Result "0-1"]
[Round "01"]
[TimeControl "180+2"]
[Date "2023.05.09"]
[WhiteClock "0:00:08"]
[BlackClock "0:00:23"]

1. e4 {[%clk 0:02:59]}  c5 {[%clk 0:02:59]} 2. Nc3 {[%clk 0:02:59]}  d6 {[%clk 0:02:59]} 3. d4 {[%clk 0:02:58]}  cxd4 {[%clk 0:02:59]} 4. Qxd4 {[%clk 0:02:59]}  Nf6 {[%clk 0:02:58]} 5. b3 {[%clk 0:02:59]}  Nc6 {[%clk 0:02:58]} 6. Qd2 {[%clk 0:02:59]}  g6 {[%clk 0:02:56]} 7. Bb2 {[%clk 0:02:59]}  Bg7 {[%clk 0:02:56]} 8. O-O-O {[%clk 0:02:59]}  O-O {[%clk 0:02:55]} 9. Kb1 {[%clk 0:03:00]}  a6 {[%clk 0:02:53]} 10. f3 {[%clk 0:03:00]}  b5 {[%clk 0:02:53]} 11. h4 {[%clk 0:02:57]}  h5 {[%clk 0:02:51]} 12. g4 {[%clk 0:02:57]}  hxg4 {[%clk 0:02:50]} 13. h5 {[%clk 0:02:57]}  Nxh5 {[%clk 0:02:50]} 14. Rxh5 {[%clk 0:02:44]}  gxh5 {[%clk 0:02:49]} 15. Qg5 {[%clk 0:02:44]}  Ne5 {[%clk 0:02:38]} 16. f4 {[%clk 0:02:37]}  Ng6 {[%clk 0:02:37]} 17. Qxh5 {[%clk 0:02:06]}  e5 {[%clk 0:02:32]} 18. f5 {[%clk 0:02:04]}  Qh4 {[%clk 0:02:27]} 19. Qxh4 {[%clk 0:01:52]}  Nxh4 {[%clk 0:02:27]} 20. Rxd6 {[%clk 0:01:51]}  Bb7 {[%clk 0:02:23]} 21. Bd3 {[%clk 0:01:45]}  Rad8 {[%clk 0:02:20]} 22. Rxd8 {[%clk 0:01:44]}  Rxd8 {[%clk 0:02:21]} 23. Nge2 {[%clk 0:01:44]}  b4 {[%clk 0:02:17]} 24. Nd1 {[%clk 0:01:44]}  Ng2 {[%clk 0:02:02]} 25. Nf2 {[%clk 0:01:38]}  Nf4 {[%clk 0:01:35]} 26. Nxf4 {[%clk 0:01:08]}  exf4 {[%clk 0:01:36]} 27. Nxg4 {[%clk 0:01:09]}  Bxb2 {[%clk 0:01:25]} 28. Kxb2 {[%clk 0:01:09]}  f3 {[%clk 0:01:25]} 29. Kc1 {[%clk 0:01:08]}  Kg7 {[%clk 0:01:25]} 30. Nf2 {[%clk 0:01:04]}  Kf6 {[%clk 0:01:06]} 31. Kd2 {[%clk 0:01:03]}  Rg8 {[%clk 0:01:05]} 32. Ke3 {[%clk 0:01:03]}  Ke5 {[%clk 0:00:34]} 33. Kxf3 {[%clk 0:00:58]}  f6 {[%clk 0:00:34]} 34. Ng4+ {[%clk 0:00:56]}  Rxg4 {[%clk 0:00:33]} 35. Kxg4 {[%clk 0:00:55]}  Bxe4 {[%clk 0:00:33]} 36. Bxa6 {[%clk 0:00:44]}  Bxf5+ {[%clk 0:00:33]} 37. Kf3 {[%clk 0:00:42]}  Bxc2 {[%clk 0:00:33]} 38. Bc4 {[%clk 0:00:32]}  Bb1 {[%clk 0:00:31]} 39. Ke3 {[%clk 0:00:31]}  Bxa2 {[%clk 0:00:30]} 40. Kf3 {[%clk 0:00:31]}  Bb1 {[%clk 0:00:19]} 41. Ke3 {[%clk 0:00:31]}  f5 {[%clk 0:00:20]} 42. Bf7 {[%clk 0:00:23]}  f4+ {[%clk 0:00:20]} 43. Kd2 {[%clk 0:00:22]}  Kd4 {[%clk 0:00:19]} 44. Bc4 {[%clk 0:00:20]}  Be4 {[%clk 0:00:19]} 45. Ke2 {[%clk 0:00:19]}  Bd5 {[%clk 0:00:20]} 46. Ba6 {[%clk 0:00:12]}  Bxb3 {[%clk 0:00:19]} 47. Kf3 {[%clk 0:00:12]}  Bc4 {[%clk 0:00:19]} 48. Bb7 {[%clk 0:00:10]}  Bd5+ {[%clk 0:00:19]} 49. Bxd5 {[%clk 0:00:09]}  Kxd5 {[%clk 0:00:20]} 50. Kxf4 {[%clk 0:00:10]}  b3 {[%clk 0:00:21]} 51. Ke3 {[%clk 0:00:11]}  b2 {[%clk 0:00:22]} 52. Kd2 {[%clk 0:00:08]}  b1=Q {[%clk 0:00:23]} 0-1


[Site "https://www.chess.com"]

[Event "Titled Tuesday Blitz May 9 Early 2023"]
[White "Tarnowska, Aleksandra"]
[Black "Hindermann, Felix"]
[WhiteFideId "1180967"]
[BlackFideId "1305212"]
[WhiteElo "1776"]
[BlackElo "2206"]
[Result "0-1"]
[Round "01"]
[TimeControl "180+2"]
[Date "2023.05.09"]
[WhiteClock "0:00:00"]
[BlackClock "0:02:22"]

1. e4 {[%clk 0:02:59]}  e6 {[%clk 0:03:00]} 2. d4 {[%clk 0:02:59]}  d5 {[%clk 0:03:00]} 3. Nd2 {[%clk 0:02:59]}  Nc6 {[%clk 0:03:00]} 4. c3 {[%clk 0:02:59]}  e5 {[%clk 0:02:58]} 5. exd5 {[%clk 0:02:45]}  Qxd5 {[%clk 0:02:59]} 6. Ngf3 {[%clk 0:02:28]}  exd4 {[%clk 0:02:59]} 7. Bc4 {[%clk 0:02:26]}  Qh5 {[%clk 0:02:59]} 8. cxd4 {[%clk 0:02:12]}  Bg4 {[%clk 0:02:59]} 9. d5 {[%clk 0:01:47]}  Bxf3 {[%clk 0:02:49]} 10. Nxf3 {[%clk 0:01:42]}  Bb4+ {[%clk 0:02:47]} 11. Bd2 {[%clk 0:01:37]}  Bxd2+ {[%clk 0:02:47]} 12. Qxd2 {[%clk 0:01:37]}  O-O-O {[%clk 0:02:47]} 13. O-O {[%clk 0:01:28]}  Nf6 {[%clk 0:02:47]} 14. Rfd1 {[%clk 0:01:12]}  Rhe8 {[%clk 0:02:46]} 15. Rac1 {[%clk 0:01:10]}  Kb8 {[%clk 0:02:44]} 16. Qc2 {[%clk 0:00:45]}  Ne5 {[%clk 0:02:41]} 17. Nxe5 {[%clk 0:00:42]}  Qxe5 {[%clk 0:02:42]} 18. Bb5 {[%clk 0:00:28]}  Re7 {[%clk 0:02:38]} 19. Qb3 {[%clk 0:00:17]}  Rxd5 {[%clk 0:02:34]} 20. Rxd5 {[%clk 0:00:06]}  Qxd5 {[%clk 0:02:35]} 21. Bc6 {[%clk 0:00:04]}  Qxb3 {[%clk 0:02:21]} 22. axb3 {[%clk 0:00:02]}  bxc6 {[%clk 0:02:21]} 23. h3 {[%clk 0:00:02]}  Kb7 {[%clk 0:02:22]} 24. Ra1 {[%clk 0:00:01]}  Nd5 {[%clk 0:02:22]} 25. Rd1 {[%clk 0:00:00]}  Re2 {[%clk 0:02:22]} 0-1


[Site "https://www.chess.com"]

[Event "Titled Tuesday Blitz May 9 Early 2023"]
[White "Richter, Paul"]
[Black "Ciuffoletti, Paolo"]
[WhiteFideId "2046350"]
[BlackFideId "807630"]
[WhiteElo "2542"]
[BlackElo "2143"]
[Result "1-0"]
[Round "01"]
[TimeControl "180+2"]
[Date "2023.05.09"]
[WhiteClock "0:00:28"]
[BlackClock "0:00:00"]

1. e4 {[%clk 0:02:59]}  c5 {[%clk 0:02:59]} 2. Nf3 {[%clk 0:02:59]}  Nc6 {[%clk 0:02:59]} 3. d4 {[%clk 0:02:58]}  cxd4 {[%clk 0:02:58]} 4. Nxd4 {[%clk 0:02:59]}  Nf6 {[%clk 0:02:58]} 5. Nc3 {[%clk 0:03:00]}  e5 {[%clk 0:02:58]} 6. Ndb5 {[%clk 0:03:00]}  d6 {[%clk 0:02:57]} 7. Bg5 {[%clk 0:03:00]}  a6 {[%clk 0:02:58]} 8. Na3 {[%clk 0:02:59]}  b5 {[%clk 0:02:58]} 9. Bxf6 {[%clk 0:02:59]}  gxf6 {[%clk 0:02:52]} 10. Nd5 {[%clk 0:03:00]}  f5 {[%clk 0:02:52]} 11. Nxb5 {[%clk 0:02:59]}  axb5 {[%clk 0:02:51]} 12. Bxb5 {[%clk 0:03:00]}  Bd7 {[%clk 0:02:45]} 13. exf5 {[%clk 0:02:59]}  Ra5 {[%clk 0:02:22]} 14. a4 {[%clk 0:02:57]}  Bg7 {[%clk 0:01:41]} 15. Qg4 {[%clk 0:02:26]}  O-O {[%clk 0:01:38]} 16. Bxc6 {[%clk 0:02:22]}  h5 {[%clk 0:01:15]} 17. Qg3 {[%clk 0:02:00]}  h4 {[%clk 0:01:02]} 18. Qg4 {[%clk 0:01:59]}  Rxd5 {[%clk 0:00:58]} 19. Bxd5 {[%clk 0:01:56]}  Qa5+ {[%clk 0:00:58]} 20. c3 {[%clk 0:01:52]}  Qxd5 {[%clk 0:00:58]} 21. O-O {[%clk 0:01:45]}  e4 {[%clk 0:00:47]} 22. Rfd1 {[%clk 0:01:36]}  Qxf5 {[%clk 0:00:47]} 23. Qxf5 {[%clk 0:01:32]}  Bxf5 {[%clk 0:00:47]} 24. Rxd6 {[%clk 0:01:33]}  Rb8 {[%clk 0:00:45]} 25. a5 {[%clk 0:01:15]}  Rxb2 {[%clk 0:00:25]} 26. a6 {[%clk 0:01:14]}  e3 {[%clk 0:00:25]} 27. a7 {[%clk 0:00:49]}  exf2+ {[%clk 0:00:19]} 28. Kf1 {[%clk 0:00:43]}  Be4 {[%clk 0:00:18]} 29. Ra4 {[%clk 0:00:35]}  Bb7 {[%clk 0:00:00]} 30. Rb4 {[%clk 0:00:28]} 1-0


[Site "https://www.chess.com"]

[Event "Titled Tuesday Blitz May 9 Early 2023"]
[White "Kokoszczynski, Jan"]
[Black "Fabris, Alberto"]
[WhiteFideId "1174460"]
[BlackFideId "801348"]
[WhiteElo "2139"]
[BlackElo "2152"]
[Result "1-0"]
[Round "01"]
[TimeControl "180+2"]
[Date "2023.05.09"]
[WhiteClock "0:00:40"]
[BlackClock "0:00:16"]

1. e4 {[%clk 0:02:58]}  c5 {[%clk 0:02:59]} 2. Nf3 {[%clk 0:02:57]}  d6 {[%clk 0:03:00]} 3. d4 {[%clk 0:02:57]}  cxd4 {[%clk 0:03:01]} 4. Qxd4 {[%clk 0:02:55]}  Nc6 {[%clk 0:02:58]} 5. Bb5 {[%clk 0:02:55]}  Bd7 {[%clk 0:02:59]} 6. Qd3 {[%clk 0:02:54]}  Nf6 {[%clk 0:02:56]} 7. Nc3 {[%clk 0:02:53]}  g6 {[%clk 0:02:54]} 8. Bg5 {[%clk 0:02:53]}  Bg7 {[%clk 0:02:54]} 9. O-O-O {[%clk 0:02:53]}  Qc7 {[%clk 0:02:48]} 10. Kb1 {[%clk 0:02:51]}  a6 {[%clk 0:02:37]} 11. Bc4 {[%clk 0:02:12]}  Nb4 {[%clk 0:02:24]} 12. Qe2 {[%clk 0:02:11]}  O-O {[%clk 0:02:21]} 13. Bb3 {[%clk 0:02:07]}  Be6 {[%clk 0:02:06]} 14. Nd4 {[%clk 0:01:52]}  Bxb3 {[%clk 0:02:04]} 15. cxb3 {[%clk 0:01:52]}  e6 {[%clk 0:01:56]} 16. Rc1 {[%clk 0:01:49]}  Qb6 {[%clk 0:01:50]} 17. Be3 {[%clk 0:01:47]}  Qd8 {[%clk 0:01:45]} 18. Rhd1 {[%clk 0:01:44]}  Nc6 {[%clk 0:01:43]} 19. f3 {[%clk 0:01:30]}  Qe7 {[%clk 0:01:42]} 20. Qd2 {[%clk 0:01:30]}  Rfd8 {[%clk 0:01:41]} 21. Nxc6 {[%clk 0:01:24]}  bxc6 {[%clk 0:01:40]} 22. Na4 {[%clk 0:01:25]}  c5 {[%clk 0:01:26]} 23. Bh6 {[%clk 0:01:19]}  Bh8 {[%clk 0:01:25]} 24. Bg5 {[%clk 0:01:19]}  Rab8 {[%clk 0:01:18]} 25. Qa5 {[%clk 0:01:18]}  Qb7 {[%clk 0:01:16]} 26. Nxc5 {[%clk 0:01:10]}  Qb6 {[%clk 0:00:56]} 27. Qxb6 {[%clk 0:01:03]}  Rxb6 {[%clk 0:00:56]} 28. e5 {[%clk 0:00:59]}  Rc8 {[%clk 0:00:30]} 29. exd6 {[%clk 0:00:42]}  Nd5 {[%clk 0:00:16]} 30. d7 {[%clk 0:00:40]} 1-0


[Site "https://www.chess.com"]

[Event "Titled Tuesday Blitz May 9 Early 2023"]
[White "Sha_Moo"]
[Black "Nguyen, Hong Anh"]
[BlackFideId "12406732"]
[WhiteElo "2152"]
[BlackElo "2054"]
[Result "0-1"]
[Round "01"]
[TimeControl "180+2"]
[Date "2023.05.09"]
[WhiteClock "0:01:28"]
[BlackClock "0:01:28"]

1. e4 {[%clk 0:03:00]}  c5 {[%clk 0:02:21]} 2. Nf3 {[%clk 0:03:00]}  Nc6 {[%clk 0:02:18]} 3. d4 {[%clk 0:03:00]}  cxd4 {[%clk 0:02:18]} 4. Nxd4 {[%clk 0:02:58]}  g6 {[%clk 0:02:18]} 5. c4 {[%clk 0:02:57]}  Nf6 {[%clk 0:02:18]} 6. Nc3 {[%clk 0:02:57]}  d6 {[%clk 0:02:18]} 7. Be2 {[%clk 0:02:55]}  Nxd4 {[%clk 0:02:18]} 8. Qxd4 {[%clk 0:02:53]}  Bg7 {[%clk 0:02:18]} 9. Bg5 {[%clk 0:02:54]}  O-O {[%clk 0:02:19]} 10. Qd2 {[%clk 0:02:53]}  Be6 {[%clk 0:02:19]} 11. O-O {[%clk 0:02:51]}  Qa5 {[%clk 0:02:19]} 12. Rac1 {[%clk 0:02:47]}  Rfc8 {[%clk 0:02:19]} 13. Be3 {[%clk 0:02:34]}  Bxc4 {[%clk 0:02:18]} 14. Bxc4 {[%clk 0:02:28]}  Rxc4 {[%clk 0:02:18]} 15. f3 {[%clk 0:02:28]}  Rac8 {[%clk 0:02:17]} 16. Rc2 {[%clk 0:02:14]}  b5 {[%clk 0:02:12]} 17. Rfc1 {[%clk 0:02:14]}  a6 {[%clk 0:02:01]} 18. a3 {[%clk 0:02:10]}  Qd8 {[%clk 0:01:56]} 19. Nd5 {[%clk 0:01:51]}  Nxd5 {[%clk 0:01:54]} 20. exd5 {[%clk 0:01:40]}  Rxc2 {[%clk 0:01:38]} 21. Rxc2 {[%clk 0:01:35]}  Rxc2 {[%clk 0:01:39]} 22. Qxc2 {[%clk 0:01:35]}  Bf6 {[%clk 0:01:30]} 23. b3 {[%clk 0:01:34]}  Qa5 {[%clk 0:01:29]} 24. Bh6 {[%clk 0:01:28]}  Qe1# {[%clk 0:01:28]} 0-1


[Site "https://www.chess.com"]

[Event "Titled Tuesday Blitz May 9 Early 2023"]
[White "Tuleyeva-Aketayeva, Dana"]
[Black "Lehtosaari, Mauri"]
[WhiteFideId "13701932"]
[BlackFideId "501999"]
[WhiteElo "2030"]
[BlackElo "2530"]
[Result "0-1"]
[Round "01"]
[TimeControl "180+2"]
[Date "2023.05.09"]
[WhiteClock "0:00:02"]
[BlackClock "0:00:20"]

1. d4 {[%clk 0:02:50]}  d5 {[%clk 0:02:55]} 2. Nf3 {[%clk 0:02:41]}  Nf6 {[%clk 0:02:54]} 3. g3 {[%clk 0:02:41]}  c6 {[%clk 0:02:53]} 4. Bg2 {[%clk 0:02:41]}  Bf5 {[%clk 0:02:49]} 5. O-O {[%clk 0:02:41]}  e6 {[%clk 0:02:49]} 6. c4 {[%clk 0:02:40]}  Nbd7 {[%clk 0:02:49]} 7. Nc3 {[%clk 0:02:40]}  Be7 {[%clk 0:02:48]} 8. Nd2 {[%clk 0:02:40]}  O-O {[%clk 0:02:46]} 9. e4 {[%clk 0:02:41]}  dxe4 {[%clk 0:02:46]} 10. Ndxe4 {[%clk 0:02:41]}  Nxe4 {[%clk 0:02:46]} 11. Nxe4 {[%clk 0:02:41]}  Nf6 {[%clk 0:02:46]} 12. Nc3 {[%clk 0:02:42]}  h6 {[%clk 0:02:46]} 13. d5 {[%clk 0:02:05]}  Rc8 {[%clk 0:02:45]} 14. Be3 {[%clk 0:02:03]}  c5 {[%clk 0:02:31]} 15. dxe6 {[%clk 0:01:53]}  Bxe6 {[%clk 0:02:31]} 16. Nd5 {[%clk 0:01:40]}  b6 {[%clk 0:02:21]} 17. Nxe7+ {[%clk 0:01:39]}  Qxe7 {[%clk 0:02:22]} 18. Qc2 {[%clk 0:01:38]}  Rfd8 {[%clk 0:02:19]} 19. Rad1 {[%clk 0:01:37]}  Bg4 {[%clk 0:02:13]} 20. Rxd8+ {[%clk 0:01:14]}  Rxd8 {[%clk 0:02:11]} 21. h3 {[%clk 0:01:10]}  Bh5 {[%clk 0:02:09]} 22. a3 {[%clk 0:01:01]}  Qd7 {[%clk 0:01:56]} 23. b4 {[%clk 0:00:54]}  Qd6 {[%clk 0:01:37]} 24. bxc5 {[%clk 0:00:37]}  bxc5 {[%clk 0:01:37]} 25. g4 {[%clk 0:00:32]}  Bg6 {[%clk 0:01:37]} 26. Qa4 {[%clk 0:00:32]}  Qb6 {[%clk 0:01:29]} 27. Qb5 {[%clk 0:00:25]}  Rc8 {[%clk 0:01:26]} 28. a4 {[%clk 0:00:19]}  Qc7 {[%clk 0:01:18]} 29. a5 {[%clk 0:00:16]}  Be4 {[%clk 0:01:17]} 30. Bxe4 {[%clk 0:00:14]}  Nxe4 {[%clk 0:01:17]} 31. Qb1 {[%clk 0:00:10]}  Ng5 {[%clk 0:01:17]} 32. h4 {[%clk 0:00:09]}  Nf3+ {[%clk 0:01:16]} 33. Kg2 {[%clk 0:00:09]}  Nxh4+ {[%clk 0:01:17]} 34. Kh3 {[%clk 0:00:09]}  Ng6 {[%clk 0:01:05]} 35. Qf5 {[%clk 0:00:08]}  a6 {[%clk 0:00:50]} 36. Rb1 {[%clk 0:00:08]}  Qc6 {[%clk 0:00:35]} 37. Rb6 {[%clk 0:00:07]}  Qh1+ {[%clk 0:00:34]} 38. Kg3 {[%clk 0:00:07]}  Re8 {[%clk 0:00:25]} 39. Qf3 {[%clk 0:00:07]}  Qh4+ {[%clk 0:00:19]} 40. Kg2 {[%clk 0:00:07]}  Qe7 {[%clk 0:00:18]} 41. Rxa6 {[%clk 0:00:07]}  Nh4+ {[%clk 0:00:18]} 42. Kg3 {[%clk 0:00:06]}  Nxf3 {[%clk 0:00:19]} 43. Kxf3 {[%clk 0:00:07]}  Qe4+ {[%clk 0:00:20]} 44. Kg3 {[%clk 0:00:06]}  Qxc4 {[%clk 0:00:20]} 45. Rb6 {[%clk 0:00:06]}  Qe4 {[%clk 0:00:20]} 46. Bxc5 {[%clk 0:00:05]}  Qe5+ {[%clk 0:00:20]} 47. f4 {[%clk 0:00:02]}  Qxc5 {[%clk 0:00:20]} 0-1


[Site "https://www.chess.com"]

[Event "Titled Tuesday Blitz May 9 Early 2023"]
[White "Stead, Kerry"]
[Black "HamedWafa4"]
[WhiteFideId "3202577"]
[WhiteElo "1997"]
[BlackElo "2522"]
[Result "0-1"]
[Round "01"]
[TimeControl "180+2"]
[Date "2023.05.09"]
[WhiteClock "0:00:00"]
[BlackClock "0:01:57"]

1. d4 {[%clk 0:01:26]}  Nf6 {[%clk 0:02:57]} 2. f3 {[%clk 0:01:26]}  d5 {[%clk 0:02:57]} 3. e4 {[%clk 0:01:26]}  dxe4 {[%clk 0:02:57]} 4. Nc3 {[%clk 0:01:26]}  Bf5 {[%clk 0:02:56]} 5. fxe4 {[%clk 0:01:26]}  Nxe4 {[%clk 0:02:57]} 6. Qf3 {[%clk 0:01:25]}  Nxc3 {[%clk 0:02:50]} 7. bxc3 {[%clk 0:01:26]}  e6 {[%clk 0:02:41]} 8. Qxb7 {[%clk 0:01:25]}  Nd7 {[%clk 0:02:41]} 9. Bb5 {[%clk 0:01:24]}  Bd6 {[%clk 0:02:40]} 10. Bxd7+ {[%clk 0:01:21]}  Kxd7 {[%clk 0:02:41]} 11. Nf3 {[%clk 0:01:20]}  Ke7 {[%clk 0:02:38]} 12. O-O {[%clk 0:01:17]}  Re8 {[%clk 0:02:39]} 13. Ng5 {[%clk 0:00:55]}  h6 {[%clk 0:02:30]} 14. Nf3 {[%clk 0:00:43]}  Kf8 {[%clk 0:02:28]} 15. Ne5 {[%clk 0:00:24]}  Kg8 {[%clk 0:02:21]} 16. Qf3 {[%clk 0:00:19]}  c5 {[%clk 0:02:10]} 17. Bf4 {[%clk 0:00:07]}  cxd4 {[%clk 0:02:02]} 18. cxd4 {[%clk 0:00:00]}  Rc8 {[%clk 0:01:57]} 0-1


[Site "https://www.chess.com"]

[Event "Titled Tuesday Blitz May 9 Early 2023"]
[White "Cramling Bellon, Anna"]
[Black "Spalir, Jernej"]
[WhiteFideId "32009232"]
[BlackFideId "14606518"]
[WhiteElo "1976"]
[BlackElo "2282"]
[Result "0-1"]
[Round "01"]
[TimeControl "180+2"]
[Date "2023.05.09"]
[WhiteClock "0:00:00"]
[BlackClock "0:00:52"]

1. e3 {[%clk 0:02:58]}  e5 {[%clk 0:02:58]} 2. d3 {[%clk 0:02:57]}  d5 {[%clk 0:02:57]} 3. Ne2 {[%clk 0:02:57]}  Nc6 {[%clk 0:02:58]} 4. Nd2 {[%clk 0:02:56]}  Nf6 {[%clk 0:02:57]} 5. Ng3 {[%clk 0:02:56]}  Bd6 {[%clk 0:02:57]} 6. Nb3 {[%clk 0:02:56]}  O-O {[%clk 0:02:57]} 7. e4 {[%clk 0:02:52]}  d4 {[%clk 0:02:56]} 8. c3 {[%clk 0:02:50]}  Re8 {[%clk 0:02:41]} 9. Be2 {[%clk 0:02:49]}  a5 {[%clk 0:02:40]} 10. a4 {[%clk 0:02:47]}  Be6 {[%clk 0:02:36]} 11. O-O {[%clk 0:02:35]}  dxc3 {[%clk 0:02:35]} 12. bxc3 {[%clk 0:02:34]}  Qe7 {[%clk 0:02:26]} 13. Be3 {[%clk 0:02:31]}  Rad8 {[%clk 0:02:24]} 14. Rb1 {[%clk 0:02:17]}  b6 {[%clk 0:02:23]} 15. d4 {[%clk 0:01:43]}  exd4 {[%clk 0:02:13]} 16. Nxd4 {[%clk 0:01:34]}  Nxd4 {[%clk 0:02:10]} 17. cxd4 {[%clk 0:01:33]}  Bb4 {[%clk 0:02:07]} 18. Bd3 {[%clk 0:00:59]}  Bd7 {[%clk 0:02:02]} 19. e5 {[%clk 0:00:55]}  Nd5 {[%clk 0:01:57]} 20. Qh5 {[%clk 0:00:55]}  g6 {[%clk 0:01:54]} 21. Qh6 {[%clk 0:00:48]}  Nxe3 {[%clk 0:01:52]} 22. fxe3 {[%clk 0:00:49]}  Qf8 {[%clk 0:01:46]} 23. Qxf8+ {[%clk 0:00:41]}  Rxf8 {[%clk 0:01:43]} 24. Ne4 {[%clk 0:00:40]}  Kg7 {[%clk 0:01:44]} 25. Nf6 {[%clk 0:00:38]}  Bxa4 {[%clk 0:01:43]} 26. h4 {[%clk 0:00:28]}  h5 {[%clk 0:01:40]} 27. Ne4 {[%clk 0:00:23]}  Bd7 {[%clk 0:01:37]} 28. Ng5 {[%clk 0:00:22]}  Be7 {[%clk 0:01:27]} 29. Bc4 {[%clk 0:00:06]}  Bxg5 {[%clk 0:01:25]} 30. hxg5 {[%clk 0:00:07]}  Be6 {[%clk 0:01:18]} 31. Bxe6 {[%clk 0:00:07]}  fxe6 {[%clk 0:01:19]} 32. Rbc1 {[%clk 0:00:03]}  Rxf1+ {[%clk 0:01:18]} 33. Kxf1 {[%clk 0:00:03]}  Rc8 {[%clk 0:01:05]} 34. Ke2 {[%clk 0:00:04]}  Kf7 {[%clk 0:01:05]} 35. Kd3 {[%clk 0:00:04]}  Ke7 {[%clk 0:01:06]} 36. Ke4 {[%clk 0:00:04]}  a4 {[%clk 0:01:05]} 37. d5 {[%clk 0:00:02]}  a3 {[%clk 0:00:54]} 38. Ra1 {[%clk 0:00:02]}  Ra8 {[%clk 0:00:53]} 39. dxe6 {[%clk 0:00:01]}  Kxe6 {[%clk 0:00:54]} 40. Kd4 {[%clk 0:00:01]}  Ra4+ {[%clk 0:00:51]} 41. Kc3 {[%clk 0:00:01]}  Kxe5 {[%clk 0:00:51]} 42. Kb3 {[%clk 0:00:00]}  Ra5 {[%clk 0:00:52]} 0-1


[Site "https://www.chess.com"]

[Event "Titled Tuesday Blitz May 9 Early 2023"]
[White "Santos Flores, Alberto"]
[Black "Maranhao,Jose Renato Ruiz"]
[WhiteFideId "3601234"]
[BlackFideId "2135175"]
[WhiteElo "2235"]
[BlackElo "1970"]
[Result "1-0"]
[Round "01"]
[TimeControl "180+2"]
[Date "2023.05.09"]
[WhiteClock "0:01:17"]
[BlackClock "0:00:00"]

1. d4 {[%clk 0:02:56]}  d5 {[%clk 0:02:58]} 2. Bf4 {[%clk 0:02:55]}  Nf6 {[%clk 0:02:58]} 3. e3 {[%clk 0:02:55]}  c5 {[%clk 0:02:58]} 4. c3 {[%clk 0:02:53]}  Qb6 {[%clk 0:02:58]} 5. Qb3 {[%clk 0:02:51]}  c4 {[%clk 0:02:58]} 6. Qc2 {[%clk 0:02:46]}  Nc6 {[%clk 0:02:57]} 7. Nd2 {[%clk 0:02:45]}  g6 {[%clk 0:02:50]} 8. Ngf3 {[%clk 0:02:35]}  Bf5 {[%clk 0:02:49]} 9. Qc1 {[%clk 0:02:35]}  Bg7 {[%clk 0:02:49]} 10. Nh4 {[%clk 0:02:36]}  Bd7 {[%clk 0:02:45]} 11. Be2 {[%clk 0:02:36]}  h6 {[%clk 0:02:44]} 12. Nhf3 {[%clk 0:02:35]}  O-O {[%clk 0:02:43]} 13. Ne5 {[%clk 0:02:34]}  Bf5 {[%clk 0:02:31]} 14. g4 {[%clk 0:02:29]}  Nxe5 {[%clk 0:02:12]} 15. gxf5 {[%clk 0:02:23]}  Nd3+ {[%clk 0:02:06]} 16. Bxd3 {[%clk 0:02:23]}  cxd3 {[%clk 0:02:06]} 17. fxg6 {[%clk 0:02:23]}  fxg6 {[%clk 0:02:03]} 18. O-O {[%clk 0:02:12]}  Qe6 {[%clk 0:01:16]} 19. Kh1 {[%clk 0:02:02]}  Qh3 {[%clk 0:01:10]} 20. Qd1 {[%clk 0:01:50]}  Ng4 {[%clk 0:00:29]} 21. Qf3 {[%clk 0:01:42]}  Qxf3+ {[%clk 0:00:28]} 22. Nxf3 {[%clk 0:01:43]}  g5 {[%clk 0:00:28]} 23. h3 {[%clk 0:01:36]}  Nxf2+ {[%clk 0:00:15]} 24. Rxf2 {[%clk 0:01:36]}  gxf4 {[%clk 0:00:15]} 25. exf4 {[%clk 0:01:37]}  Rxf4 {[%clk 0:00:16]} 26. Raf1 {[%clk 0:01:31]}  Raf8 {[%clk 0:00:13]} 27. Kg2 {[%clk 0:01:31]}  h5 {[%clk 0:00:08]} 28. Rd2 {[%clk 0:01:20]}  e5 {[%clk 0:00:05]} 29. dxe5 {[%clk 0:01:18]}  Bxe5 {[%clk 0:00:00]} 30. Rxd3 {[%clk 0:01:17]} 1-0


[Site "https://www.chess.com"]